bitfinex-derivatives/quotes_BTCF0:USTF0_20250108
["timestamp","ask_amount","ask_price","bid_price","bid_amount"]
[1736352379944,0.3608,94992.0,94974.0,0.3608]
[1736352380139,0.4718,94990.0,94974.0,0.33568407]
[1736352380544,0.15909345,95000.0,94982.0,0.3608]
[1736352380545,0.4718,95000.0,94982.0,0.3608]
[1736352380743,0.4718,95000.0,94993.0,0.3608]
[1736352380939,0.48518294,95000.0,94993.0,0.3608]
[1736352382153,0.48518294,95000.0,94993.0,0.3608]
[1736352382549,0.49018294,95000.0,94993.0,0.3608]
[1736352382749,0.0129927,95008.0,94993.0,0.3608]
[1736352383049,0.3608,95013.0,95002.0,0.3608]
[1736352383249,0.01326908,95018.0,95010.0,0.3608]
[1736352383442,0.00132,95020.0,95010.0,0.3608]
[1736352383643,0.0133095,95020.0,95010.0,0.3608]
[1736352383846,0.3608,95032.0,95010.0,0.3608]
[1736352384051,0.3608,95023.0,95010.0,0.51989345]
[1736352384239,0.37404301,95032.0,95010.0,0.51989345]
[1736352384442,0.37404301,95032.0,95020.0,0.15909345]
[1736352384644,0.01324301,95032.0,95029.0,0.3608]
[1736352384844,0.3608,95036.0,95020.0,0.15909345]
[1736352385048,0.3608,95036.0,95018.0,0.3608]
[1736352385246,0.3608,95021.0,95011.0,0.5054]
[1736352385645,0.3608,95021.0,95020.0,0.002]
[1736352386156,0.3608,95036.0,95020.0,0.3628]
[1736352386542,0.008,95021.0,95020.0,0.60693038]
[1736352386952,0.008,95021.0,95020.0,0.3608]
[1736352387260,0.004,95032.0,95020.0,0.3608]
[1736352387549,0.3608,95036.0,95020.0,0.3608]
[1736352387550,0.006,95036.0,95029.0,0.3608]
[1736352387747,0.006,95036.0,95030.0,0.5086]
[1736352388151,0.4848692,95047.0,95030.0,0.1478]
[1736352388152,0.3608,95040.0,95030.0,0.1478]
[1736352388845,0.006,95032.0,95030.0,0.1478]
[1736352389049,0.006,95032.0,95020.0,0.001]
[1736352389050,0.3668,95032.0,95020.0,0.002]
[1736352389761,0.3668,95032.0,95020.0,0.001]
[1736352389942,0.3608,95021.0,95020.0,0.001]
[1736352390354,0.3608,95021.0,95012.0,0.1571]
[1736352390547,0.3608,95021.0,95020.0,0.002]
[1736352390948,0.37376779,95032.0,95020.0,0.002]
[1736352391547,0.37376779,95032.0,95020.0,0.24813038]
[1736352391748,0.37376779,95032.0,95020.0,0.002]
[1736352391947,0.37976779,95032.0,95020.0,0.003]
[1736352392348,0.37976779,95032.0,95020.0,0.001]
[1736352392551,0.006,95021.0,95020.0,0.002]
[1736352393059,0.01896779,95032.0,95020.0,0.002]
[1736352393357,0.15691812,95043.0,95025.0,0.3608]
[1736352393545,0.3608,95044.0,95034.0,0.3608]
[1736352393749,0.3608,95044.0,95026.0,0.3608]
[1736352393949,0.3608,95044.0,95020.0,0.003]
[1736352394153,0.3608,95028.0,95020.0,0.003]
[1736352394463,0.006,95032.0,95020.0,0.003]
[1736352394658,0.3608,95036.0,95020.0,0.002]
[1736352394852,0.006,95021.0,95020.0,0.003]
[1736352396354,0.37389547,95026.0,95020.0,0.001]
[1736352396558,0.3608,95026.0,95020.0,0.001]
[1736352397152,0.12495692,95032.0,95020.0,0.001]
[1736352397358,0.12495692,95032.0,95020.0,0.002]
[1736352397665,0.12495692,95032.0,95020.0,0.001]
[1736352397854,0.003,95026.0,95020.0,0.002]
[1736352399265,0.003,95026.0,95020.0,0.001]
[1736352400761,0.01282829,95033.0,95020.0,0.001]
[1736352400957,0.12495692,95034.0,95020.0,0.001]
[1736352401466,0.12495692,95031.0,95020.0,0.001]
[1736352401668,0.12495692,95031.0,95026.0,0.3608]
[1736352402058,0.15691812,95040.0,95026.0,0.3608]
[1736352402255,0.47316,95047.0,95034.0,0.3608]
[1736352402256,0.00132,95047.0,95034.0,0.3608]
[1736352402457,0.20137628,95049.0,95034.0,0.3608]
[1736352403363,0.01307454,95049.0,95034.0,0.3608]
[1736352404363,0.3608,95037.0,95026.0,0.3618]
[1736352404570,0.3608,95037.0,95021.0,0.18819151]
[1736352404571,0.3608,95029.0,95021.0,0.18819151]
[1736352406255,0.3608,95029.0,95006.0,0.50746]
[1736352406463,0.3608,95019.0,95006.0,0.50746]
[1736352407263,0.3608,95019.0,95006.0,0.5069]
[1736352407866,0.3608,95019.0,95016.0,0.001]
[1736352408067,0.3608,95029.0,95016.0,0.001]
[1736352408068,0.01307453,95024.0,95016.0,0.001]
[1736352408259,0.3608,95029.0,95016.0,0.001]
[1736352408467,0.3608,95029.0,95014.0,0.3608]
[1736352408766,0.3735305,95029.0,95014.0,0.3608]
[1736352409866,0.3735305,95029.0,95006.0,0.33729151]
[1736352409867,0.3608,95021.0,95006.0,0.33729151]
[1736352410065,0.3608,95021.0,95006.0,0.33429151]
[1736352410261,0.3608,95012.0,95006.0,0.18919151]
[1736352410764,0.052635,95007.0,95006.0,0.18919151]
[1736352411266,0.052635,95007.0,95006.0,0.18819151]
[1736352411571,0.052638,95003.0,94994.0,0.47869151]
[1736352412075,0.3608,95010.0,94994.0,0.47869151]
[1736352412466,0.052639,95001.0,95000.0,0.052639]
[1736352412661,0.052639,95001.0,94994.0,0.47869151]
[1736352412662,0.052642,94996.0,94994.0,0.24147351]
[1736352412866,0.413439,95001.0,94999.0,0.052639]
[1736352414170,0.05264,94998.0,94994.0,0.001]
[1736352414568,0.3608,95001.0,94992.0,0.18819151]
[1736352414770,0.052641,94997.0,94996.0,0.052641]
[1736352415776,0.3608,95001.0,94997.0,0.052641]
[1736352416569,0.05264,94999.0,94998.0,0.05264]
[1736352416767,0.052642,94995.0,94994.0,0.001]
[1736352417366,0.3608,95001.0,94998.0,0.05264]
[1736352417677,0.3608,95001.0,94996.0,0.001]
[1736352417863,0.052642,94994.0,94992.0,0.052643]
[1736352418667,0.3608,94993.0,94985.0,0.052647]
[1736352418977,0.052646,94987.0,94985.0,0.052647]
[1736352419567,0.1473,94992.0,94983.0,0.18819151]
[1736352419774,0.52596,94999.0,94983.0,0.54899151]
[1736352419967,0.5246,94999.0,94998.0,0.05264]
[1736352420373,0.47196,94999.0,94998.0,0.05264]
[1736352422372,0.3608,95001.0,95000.0,0.052639]
[1736352422572,0.052631,95015.0,95012.0,0.052632]
[1736352422872,0.052631,95015.0,95000.0,0.413439]
[1736352422873,0.053945,95025.0,95009.0,0.3608]
[1736352423071,0.3608,95030.0,95017.0,0.3608]
[1736352423270,0.052625,95026.0,95024.0,0.052625]
[1736352423676,0.3608,95030.0,95028.0,0.052623]
[1736352423881,0.37389817,95030.0,95028.0,0.052623]
[1736352424177,0.37389817,95030.0,95017.0,0.54899151]
[1736352424480,0.052629,95019.0,95017.0,0.24082051]
[1736352424675,0.052629,95019.0,95017.0,0.052629]
[1736352424976,0.052629,95019.0,95010.0,0.31036869]
[1736352424977,0.3608,95022.0,95021.0,0.052627]
[1736352425175,0.37389817,95030.0,95029.0,0.052623]
[1736352425765,0.3608,95030.0,95029.0,0.052623]
[1736352425965,0.3608,95040.0,95039.0,0.052617]
[1736352426371,0.37393076,95040.0,95039.0,0.052617]
[1736352426581,0.052622,95032.0,95024.0,0.1497]
[1736352427074,0.3608,95031.0,95024.0,0.1497]
[1736352427275,0.3608,95031.0,95024.0,0.052626]
[1736352427276,0.052626,95025.0,95024.0,0.052626]
[1736352427479,0.052631,95015.0,95014.0,0.052631]
[1736352429879,0.3608,95021.0,95020.0,0.052628]
[1736352430976,0.3608,95031.0,95020.0,0.052628]
[1736352431183,0.37389563,95031.0,95030.0,0.052622]
[1736352431488,0.37389563,95031.0,95025.0,0.052625]
[1736352431682,0.052631,95017.0,95016.0,0.05263]
[1736352432184,0.3608,95020.0,95014.0,0.001]
[1736352432492,0.413429,95020.0,95019.0,0.052628]
[1736352433187,0.3608,95020.0,95019.0,0.052628]
[1736352433386,0.413428,95020.0,95019.0,0.052628]
[1736352434291,0.3608,95020.0,95019.0,0.053628]
[1736352434488,0.052625,95025.0,95024.0,0.052626]
[1736352434691,0.06577927,95025.0,95024.0,0.052626]
[1736352434990,0.413422,95031.0,95030.0,0.052622]
[1736352435190,0.42666489,95031.0,95030.0,0.052622]
[1736352435899,0.3608,95031.0,95030.0,0.052622]
[1736352436098,0.3608,95044.0,95043.0,0.052615]
[1736352436397,0.3608,95052.0,95051.0,0.052611]
[1736352436784,0.15682684,95054.0,95053.0,0.05261]
[1736352437695,0.3608,95063.0,95062.0,0.052605]
[1736352437881,0.3608,95063.0,95057.0,0.052607]
[1736352438085,0.05261,95052.0,95051.0,0.18858355]
[1736352438292,0.41341,95052.0,95051.0,0.18858355]
[1736352439095,0.41341,95052.0,95039.0,0.18858355]
[1736352439096,0.052617,95040.0,95039.0,0.18858355]
[1736352439297,0.413417,95040.0,95039.0,0.18858355]
[1736352439788,0.413417,95040.0,95039.0,0.24120055]
[1736352440203,0.413417,95040.0,95039.0,0.18858355]
[1736352440501,0.05262,95036.0,95035.0,0.052619]
[1736352440897,0.052625,95026.0,95025.0,0.18858355]
[1736352441195,0.052625,95026.0,95025.0,0.24120855]
[1736352441400,0.413425,95026.0,95025.0,0.18858355]
[1736352441600,0.413425,95026.0,95023.0,0.18858355]
[1736352441601,0.3608,95026.0,95023.0,0.18858355]
[1736352441902,0.052626,95024.0,95023.0,0.24120955]
[1736352442198,0.3608,95037.0,95025.0,0.052625]
[1736352442404,0.3608,95037.0,95023.0,0.18858355]
[1736352442405,0.413419,95037.0,95036.0,0.052619]
[1736352442899,0.4262235,95037.0,95036.0,0.052619]
[1736352443992,0.3736045,95037.0,95024.0,0.3608]
[1736352444302,0.052622,95031.0,95030.0,0.052622]
[1736352445004,0.4262235,95037.0,95036.0,0.052619]
[1736352445908,0.3736045,95037.0,95036.0,0.052619]
[1736352446295,0.3608,95037.0,95036.0,0.052619]
[1736352446902,0.3608,95037.0,95036.0,0.053619]
[1736352448401,0.3608,95037.0,95036.0,0.205119]
[1736352449213,0.413419,95037.0,95036.0,0.18958355]
[1736352450400,0.413419,95037.0,95036.0,0.24220255]
[1736352450605,0.413419,95037.0,95036.0,0.18958355]
[1736352450809,0.052621,95032.0,95031.0,0.22850641]
[1736352451112,0.052625,95025.0,95024.0,0.235306]
[1736352451407,0.052629,95018.0,95017.0,0.31473723]
[1736352451609,0.413429,95018.0,95017.0,0.1788258]
[1736352451800,0.413429,95018.0,95017.0,0.1594558]
[1736352452915,0.413429,95018.0,94999.0,0.1564]
[1736352452916,0.052636,95005.0,95004.0,0.3608]
[1736352454401,0.052636,95005.0,94996.0,0.052641]
[1736352454606,0.052642,94995.0,94994.0,0.3608]
[1736352455802,0.054642,94995.0,94994.0,0.3608]
[1736352456814,0.063642,94995.0,94994.0,0.3618]
[1736352457510,0.063642,94995.0,94994.0,0.001]
[1736352457700,0.0739668,94995.0,94994.0,0.001]
[1736352457903,0.0759668,94995.0,94994.0,0.001]
[1736352458116,0.7367668,94995.0,94945.0,0.3608]
[1736352458313,0.052664,94955.0,94954.0,0.3608]
[1736352459608,0.052664,94955.0,94954.0,0.3628]
[1736352460117,0.07033742,94955.0,94954.0,0.3638]
[1736352461019,0.07133742,94955.0,94954.0,0.3618]
[1736352461821,0.07533742,94955.0,94954.0,0.3618]
[1736352464722,0.07533742,94955.0,94954.0,0.001]
[1736352464916,0.07533742,94955.0,94954.0,0.3618]
[1736352468120,0.07533742,94955.0,94954.0,0.001]
[1736352473018,0.052668,94947.0,94946.0,0.1505]
[1736352473424,0.052668,94947.0,94946.0,0.14327673]
[1736352474129,0.3608,94948.0,94935.0,0.3608]
[1736352474324,0.052674,94936.0,94935.0,0.3608]
[1736352475614,0.06546012,94936.0,94935.0,0.3608]
[1736352476124,0.06546012,94936.0,94935.0,0.3628]
[1736352476423,0.07446012,94936.0,94935.0,0.3628]
[1736352476626,0.12504523,94950.0,94948.0,0.052667]
[1736352476926,0.26384993,94960.0,94949.0,0.3608]
[1736352476927,0.01282753,94954.0,94949.0,0.3608]
[1736352477119,0.26384993,94960.0,94951.0,0.052666]
[1736352477323,0.26384993,94960.0,94959.0,0.3608]
[1736352477620,0.47356,94969.0,94959.0,0.3608]
[1736352477819,0.05266,94963.0,94962.0,0.05266]
[1736352478018,0.47224,94969.0,94960.0,0.1528]
[1736352478019,0.48489813,94969.0,94960.0,0.1528]
[1736352478221,0.00132,94969.0,94968.0,0.3608]
[1736352478419,0.2408206,94986.0,94985.0,0.052647]
[1736352478622,0.2408206,94986.0,94985.0,0.774247]
[1736352478623,0.1881736,94986.0,94985.0,0.774247]
[1736352479023,0.05360101,94996.0,94985.0,0.7216]
[1736352479220,0.1,95000.0,94995.0,0.3608]
[1736352479415,0.1126553,95000.0,94999.0,0.05264]
[1736352479619,0.31932478,95014.0,94997.0,0.3608]
[1736352479620,0.18792478,95014.0,94997.0,0.3608]
[1736352479826,0.15926888,95010.0,95009.0,0.3608]
[1736352480022,0.05264,94998.0,94997.0,0.3608]
[1736352480220,0.1518,95013.0,94997.0,0.3608]
[1736352480425,0.052634,95009.0,95008.0,0.413433]
[1736352480828,0.0649473,95014.0,95012.0,0.052632]
[1736352481025,0.47224,95017.0,95008.0,0.3608]
[1736352481230,0.48479744,95017.0,95016.0,0.3608]
[1736352481418,0.53742744,95017.0,95016.0,0.3608]
[1736352482716,0.006,95017.0,95016.0,0.3618]
[1736352483028,0.015,95017.0,95016.0,0.3618]
[1736352483426,0.152628,95020.0,95016.0,0.3618]
[1736352483427,0.1,95020.0,95016.0,0.6618]
[1736352483631,0.47216,95038.0,95037.0,0.052619]
[1736352483822,0.052616,95042.0,95037.0,0.3608]
[1736352484126,0.052617,95039.0,95037.0,0.3608]
[1736352484733,0.052617,95039.0,95037.0,0.3698]
[1736352485532,0.052617,95039.0,95037.0,0.3608]
[1736352485834,0.052617,95039.0,95037.0,0.3698]
[1736352486334,0.052617,95039.0,95038.0,0.3608]
[1736352486628,0.052617,95039.0,95037.0,0.009]
[1736352487645,0.052629,95018.0,95017.0,0.3608]
[1736352488426,0.052626,95024.0,95018.0,0.052629]
[1736352488624,0.052626,95024.0,95020.0,0.3608]
[1736352488831,0.052626,95024.0,95021.0,0.052627]
[1736352489035,0.052627,95023.0,95021.0,0.052627]
[1736352489227,0.47204,95031.0,95020.0,0.3608]
[1736352489429,0.052627,95021.0,95020.0,0.3608]
[1736352490235,0.052627,95021.0,95020.0,0.3618]
[1736352490637,0.052627,95021.0,95020.0,0.001]
[1736352490826,0.052628,95019.0,95018.0,0.3608]
[1736352491222,0.052636,95006.0,95004.0,0.3608]
[1736352492130,0.3608,95020.0,95004.0,0.3608]
[1736352492325,0.3608,95020.0,95010.0,0.15967488]
[1736352492525,0.052632,95014.0,95013.0,0.3608]
[1736352496038,0.009,95020.0,95019.0,0.052628]
[1736352496335,0.009,95020.0,95019.0,0.3608]
[1736352496539,0.061628,95020.0,95019.0,0.3608]
[1736352496838,0.052628,95020.0,95019.0,0.3608]
[1736352497338,0.061628,95020.0,95019.0,0.3618]
[1736352498141,0.069628,95020.0,95019.0,0.3628]
[1736352498640,0.017,95020.0,95019.0,0.415428]
[1736352500242,0.069628,95020.0,95019.0,0.415428]
[1736352500846,0.017,95020.0,95019.0,0.415428]
[1736352502342,0.1,95040.0,95039.0,0.052617]
[1736352502537,0.1,95060.0,95039.0,0.774217]
[1736352502746,0.052609,95054.0,95053.0,0.3608]
[1736352504545,0.068609,95054.0,95053.0,0.3628]
[1736352504742,0.068609,95054.0,95053.0,0.20482463]
[1736352505742,0.016,95054.0,95053.0,0.20482463]
[1736352507745,0.068609,95054.0,95053.0,0.20482463]
[1736352508840,0.016,95054.0,95053.0,0.25743463]
[1736352509146,0.28831766,95080.0,95071.0,0.0526]
[1736352509442,0.28831766,95080.0,95079.0,0.052595]
[1736352509645,0.28831766,95080.0,95079.0,0.413395]
[1736352509841,0.1,95080.0,95079.0,0.413395]
[1736352510041,0.18831766,95086.0,95085.0,0.052592]
[1736352510949,0.18831766,95086.0,95083.0,0.3608]
[1736352510950,0.052584,95099.0,95093.0,0.052587]
[1736352511141,0.052584,95099.0,95098.0,0.3608]
[1736352511650,0.2,95100.0,95099.0,0.052584]
[1736352511843,0.2,95100.0,95099.0,0.413384]
[1736352512041,0.00064,95110.0,95109.0,0.052579]
[1736352512236,0.18820518,95122.0,95119.0,0.052573]
[1736352512446,0.18820518,95122.0,95119.0,0.413373]
[1736352512751,0.052569,95127.0,95119.0,0.413373]
[1736352513144,0.01983248,95125.0,95119.0,0.413373]
[1736352513351,0.052565,95135.0,95119.0,0.413373]
[1736352513547,0.01988733,95132.0,95126.0,0.052569]
[1736352513852,0.01988733,95132.0,95119.0,0.3608]
[1736352513853,0.052567,95131.0,95129.0,0.3608]
[1736352514149,0.052568,95128.0,95110.0,0.052578]
[1736352514446,0.3608,95131.0,95129.0,0.052567]
[1736352514447,0.38038565,95131.0,95129.0,0.052567]
[1736352514751,0.62488201,95140.0,95123.0,0.3608]
[1736352514950,0.052562,95139.0,95133.0,0.3608]
[1736352515244,0.57176,95140.0,95123.0,0.3608]
[1736352515245,0.57232001,95140.0,95123.0,0.3608]
[1736352515440,0.052573,95120.0,95119.0,0.001]
[1736352516240,0.052573,95119.0,95109.0,0.052579]
[1736352516438,0.3608,95116.0,95101.0,0.3608]
[1736352516641,0.3127,95123.0,95109.0,0.3608]
[1736352516841,0.3608,95124.0,95110.0,0.15941149]
[1736352517048,0.3608,95124.0,95120.0,0.052572]
[1736352517250,0.3608,95124.0,95122.0,0.052571]
[1736352517450,0.3608,95124.0,95119.0,0.001]
[1736352517451,0.052572,95121.0,95119.0,0.001]
[1736352517665,0.052571,95123.0,95115.0,0.052575]
[1736352517950,0.052574,95119.0,95117.0,0.052574]
[1736352518144,0.38066003,95124.0,95122.0,0.052571]
[1736352518353,0.166,95139.0,95117.0,0.3608]
[1736352518546,0.166,95139.0,95120.0,0.15941149]
[1736352518754,0.052565,95133.0,95131.0,0.052566]
[1736352520849,0.052563,95138.0,95131.0,0.001]
[1736352521154,0.3608,95132.0,95131.0,0.001]
[1736352521354,0.052571,95124.0,95117.0,0.3608]
[1736352521748,0.3608,95132.0,95117.0,0.3608]
[1736352521952,0.052568,95130.0,95125.0,0.05257]
[1736352522149,0.052568,95129.0,95126.0,0.052569]
[1736352522655,0.052569,95128.0,95126.0,0.052569]
[1736352523046,0.052571,95124.0,95119.0,0.052573]
[1736352523246,0.052571,95124.0,95122.0,0.052571]
[1736352523652,0.3608,95132.0,95117.0,0.3608]
[1736352523855,0.052573,95119.0,95117.0,0.3608]
[1736352524355,0.052573,95119.0,95117.0,0.413374]
[1736352524551,0.052573,95119.0,95117.0,0.052574]
[1736352525350,0.3608,95122.0,95121.0,0.052572]
[1736352526444,0.3608,95132.0,95130.0,0.052567]
[1736352526650,0.18585611,95139.0,95138.0,0.052563]
[1736352527355,0.1,95140.0,95139.0,0.052562]
[1736352529865,0.1632,95169.0,95159.0,0.052551]
[1736352530156,0.1632,95169.0,95168.0,0.052546]
[1736352530360,0.052545,95171.0,95159.0,0.3608]
[1736352530559,0.052545,95171.0,95169.0,0.052545]
[1736352530750,0.1632,95184.0,95174.0,0.052543]
[1736352530951,0.052544,95171.0,95168.0,0.052546]
[1736352531151,0.052544,95171.0,95170.0,0.052545]
[1736352531353,0.052544,95171.0,95160.0,0.15941149]
[1736352531354,0.01979314,95177.0,95176.0,0.052542]
[1736352531552,0.052541,95177.0,95176.0,0.052542]
[1736352532149,0.1632,95184.0,95169.0,0.052545]
[1736352532346,0.052546,95169.0,95168.0,0.3698]
[1736352534060,0.052546,95169.0,95168.0,0.009]
[1736352534361,0.052544,95171.0,95170.0,0.009]
[1736352535866,0.3608,95176.0,95175.0,0.052542]
[1736352536062,0.3608,95176.0,95170.0,0.009]
[1736352536063,0.11946426,95180.0,95179.0,0.05254]
[1736352536361,0.1,95180.0,95179.0,0.05254]
[1736352537358,0.1587,95207.0,95179.0,0.31933789]
[1736352537662,0.47128,95210.0,95179.0,0.31933789]
[1736352537663,0.0198818,95204.0,95199.0,0.052529]
[1736352538054,0.0724078,95204.0,95199.0,0.052529]
[1736352538260,0.0198818,95204.0,95197.0,0.3608]
[1736352538460,0.052529,95199.0,95197.0,0.3608]
[1736352538969,0.0198818,95204.0,95188.0,0.3608]
[1736352539269,0.052534,95190.0,95188.0,0.413335]
[1736352539466,0.3608,95195.0,95178.0,0.3608]
[1736352539768,0.01968028,95201.0,95187.0,0.7216]
[1736352539954,0.3608,95205.0,95199.0,0.009]
[1736352540172,0.3608,95205.0,95199.0,0.061529]
[1736352540461,0.1629,95213.0,95199.0,0.061529]
[1736352540661,0.052519,95217.0,95212.0,0.052522]
[1736352540859,0.052519,95217.0,95212.0,0.3608]
[1736352541059,0.052519,95217.0,95216.0,0.05252]
[1736352541860,0.3608,95217.0,95210.0,0.052523]
[1736352542064,0.3608,95216.0,95190.0,0.3608]
[1736352542365,0.3608,95205.0,95190.0,0.3608]
[1736352542764,0.052527,95203.0,95201.0,0.052527]
[1736352542958,0.3608,95205.0,95190.0,0.52021149]
[1736352543163,0.052529,95199.0,95198.0,0.052529]
[1736352543465,0.3608,95205.0,95190.0,0.3608]
[1736352543667,0.3608,95205.0,95192.0,0.052533]
[1736352543668,0.052533,95193.0,95192.0,0.052533]
[1736352544074,0.3608,95205.0,95190.0,0.3608]
[1736352544075,0.052533,95191.0,95190.0,0.3608]
[1736352544570,0.052533,95191.0,95190.0,0.414334]
[1736352546264,0.01952221,95205.0,95190.0,0.3618]
[1736352546574,0.052519,95218.0,95217.0,0.052518]
[1736352546771,0.1,95220.0,95210.0,0.052523]
[1736352547071,0.1,95220.0,95219.0,0.052518]
[1736352547766,0.052522,95214.0,95213.0,0.052521]
[1736352548069,0.3608,95216.0,95201.0,0.3608]
[1736352548275,0.052526,95206.0,95205.0,0.052525]
[1736352549072,0.052527,95202.0,95201.0,0.413328]
[1736352549574,0.052523,95212.0,95211.0,0.052522]
[1736352549965,0.1,95220.0,95219.0,0.052518]
[1736352550172,0.1,95220.0,95219.0,0.413318]
[1736352550369,0.1541,95237.0,95236.0,0.052509]
[1736352550370,0.206608,95237.0,95236.0,0.052509]
[1736352551078,0.12495888,95239.0,95238.0,0.052507]
[1736352552169,0.3608,95239.0,95227.0,0.3608]
[1736352552366,0.052512,95229.0,95227.0,0.3608]
[1736352552770,0.53410171,95239.0,95214.0,0.3608]
[1736352552973,0.052518,95219.0,95217.0,0.052519]
[1736352553168,0.5149,95239.0,95214.0,0.3608]
[1736352553363,0.1,95240.0,95239.0,0.052507]
[1736352553866,0.1,95240.0,95236.0,0.009]
[1736352553867,0.052508,95237.0,95236.0,0.009]
[1736352554271,0.052508,95237.0,95235.0,0.413309]
[1736352554672,0.1,95240.0,95229.0,0.052512]
[1736352554673,0.052512,95230.0,95229.0,0.052512]
[1736352554874,0.3608,95231.0,95207.0,0.3608]
[1736352555070,0.052527,95202.0,95201.0,0.053528]
[1736352555377,0.052527,95202.0,95201.0,0.001]
[1736352555574,0.3608,95216.0,95201.0,0.001]
[1736352555876,0.052527,95202.0,95201.0,0.001]
[1736352556070,0.052523,95211.0,95210.0,0.052522]
[1736352556969,0.052528,95200.0,95188.0,0.24811894]
[1736352557370,0.052528,95200.0,95199.0,0.413329]
[1736352557574,0.052528,95200.0,95199.0,0.3608]
[1736352557772,0.052528,95200.0,95199.0,0.413329]
[1736352558584,0.052536,95189.0,95188.0,0.052535]
[1736352558769,0.01997624,95200.0,95186.0,0.3608]
[1736352558979,0.3608,95207.0,95190.0,0.15941149]
[1736352559170,0.052526,95206.0,95197.0,0.05253]
[1736352559376,0.3608,95207.0,95196.0,0.052531]
[1736352559678,0.413325,95207.0,95206.0,0.052525]
[1736352559875,0.052528,95202.0,95201.0,0.052526]
[1736352560377,0.052531,95196.0,95195.0,0.3608]
[1736352561079,0.052531,95196.0,95195.0,0.413331]
[1736352561280,0.052528,95201.0,95200.0,0.052528]
[1736352562777,0.05253,95197.0,95190.0,0.052534]
[1736352562973,0.052534,95192.0,95191.0,0.052533]
[1736352563770,0.052536,95187.0,95186.0,0.3608]
[1736352563971,0.052531,95196.0,95195.0,0.052531]
[1736352564982,0.052528,95202.0,95201.0,0.052526]
[1736352566471,0.3800622,95207.0,95195.0,0.3608]
[1736352566782,0.052531,95197.0,95196.0,0.05253]
[1736352567570,0.3800622,95207.0,95186.0,0.3608]
[1736352567771,0.052535,95192.0,95191.0,0.052533]
[1736352567976,0.052536,95187.0,95179.0,0.24811894]
[1736352568279,0.413339,95180.0,95179.0,0.24811894]
[1736352568471,0.774139,95180.0,95152.0,0.1573]
[1736352568678,0.052543,95173.0,95154.0,0.052553]
[1736352569184,0.052547,95166.0,95151.0,0.3608]
[1736352569387,0.413347,95166.0,95151.0,0.3608]
[1736352569680,0.413347,95166.0,95158.0,0.052551]
[1736352570193,0.052551,95159.0,95158.0,0.052551]
[1736352570381,0.052555,95154.0,95153.0,0.052554]
[1736352570884,0.052548,95165.0,95151.0,0.3608]
[1736352571080,0.052555,95152.0,95151.0,0.3608]
[1736352571686,0.052558,95148.0,95147.0,0.052557]
[1736352572689,0.413355,95152.0,95151.0,0.052555]
[1736352573092,0.12549065,95159.0,95145.0,0.3608]
[1736352573393,0.12549065,95159.0,95139.0,0.052562]
[1736352573394,0.12549065,95159.0,95158.0,0.413352]
[1736352574086,0.052543,95174.0,95173.0,0.052543]
[1736352574480,0.3608,95177.0,95168.0,0.3608]
[1736352574481,0.052546,95169.0,95168.0,0.413346]
[1736352574677,0.3608,95177.0,95164.0,0.15941149]
[1736352574879,0.3608,95177.0,95176.0,0.052542]
[1736352575079,0.12549065,95180.0,95176.0,0.413342]
[1736352575281,0.052539,95181.0,95180.0,0.052538]
[1736352576387,0.052536,95186.0,95185.0,0.052535]
[1736352576689,0.052533,95192.0,95191.0,0.052533]
[1736352577584,0.052536,95187.0,95186.0,0.052536]
[1736352578693,0.48730926,95202.0,95185.0,0.3608]
[1736352578694,0.052536,95186.0,95185.0,0.3608]
[1736352579187,0.052536,95186.0,95185.0,0.413337]
[1736352579389,0.052534,95191.0,95190.0,0.052533]
[1736352579588,0.05253,95197.0,95187.0,0.052535]
[1736352579783,0.052534,95192.0,95191.0,0.052533]
[1736352580182,0.052536,95187.0,95186.0,0.018]
[1736352580384,0.052536,95187.0,95186.0,0.009]
[1736352580589,0.052536,95186.0,95185.0,0.018]
[1736352581387,0.052544,95172.0,95171.0,0.052544]
[1736352581793,0.3608,95183.0,95166.0,0.413347]
[1736352581794,0.052547,95167.0,95166.0,0.413347]
[1736352581982,0.052547,95167.0,95166.0,0.052547]
[1736352582188,0.052548,95167.0,95166.0,0.052547]
[1736352582690,0.3608,95175.0,95151.0,0.1582]
[1736352582885,0.052555,95156.0,95155.0,0.052552]
[1736352585204,0.052549,95164.0,95163.0,0.052547]
[1736352585779,0.01599447,95166.0,95163.0,0.052547]
[1736352585989,0.04734844,95181.0,95163.0,0.052547]
[1736352585990,0.052549,95164.0,95163.0,0.052547]
[1736352586390,0.06345701,95181.0,95162.0,0.3608]
[1736352586591,0.06345701,95181.0,95158.0,0.01630908]
[1736352586592,0.06864757,95181.0,95180.0,0.3608]
[1736352587096,0.06864757,95181.0,95171.0,0.3608]
[1736352587281,0.052544,95172.0,95171.0,0.3608]
[1736352587487,0.052544,95172.0,95171.0,0.413344]
[1736352588184,0.052544,95172.0,95171.0,0.3608]
[1736352588491,0.052549,95163.0,95162.0,0.053549]
[1736352589095,0.01710857,95181.0,95162.0,0.001]
[1736352589282,0.001,95181.0,95180.0,0.052539]
[1736352589481,0.001,95181.0,95176.0,0.3608]
[1736352589692,0.001,95181.0,95180.0,0.052539]
[1736352590195,0.052536,95186.0,95185.0,0.052537]
[1736352590398,0.052536,95186.0,95185.0,0.413337]
[1736352590893,0.413336,95186.0,95185.0,0.052537]
[1736352591091,0.052542,95175.0,95143.0,0.3608]
[1736352591290,0.3608,95157.0,95143.0,0.352372]
[1736352591598,0.3608,95157.0,95156.0,0.42815265]
[1736352591992,0.413352,95157.0,95156.0,0.37559965]